bitfinex/quotes_SOLUSD_20250830
["timestamp","ask_amount","ask_price","bid_price","bid_amount"]
[1756553735797,4.02066326,202.49,202.46,4.93924725]
[1756553735997,0.06,202.49,202.47,0.65]
[1756553736196,4.02066326,202.49,202.47,0.65]
[1756553739515,0.06,202.49,202.47,0.65]
[1756553739815,4.02066326,202.49,202.47,0.65]
[1756553740006,3.96066326,202.48,202.45,0.03]
[1756553740212,3.96066326,202.48,202.45,0.68]
[1756553740812,3.96066326,202.47,202.45,0.68]
[1756553741014,0.74,202.49,202.45,0.68]
[1756553741213,3.96066326,202.47,202.45,0.68]
[1756553742222,3.96066326,202.47,202.45,0.03]
[1756553743108,3.96066326,202.46,202.45,0.03]
[1756553744305,38.76,202.48,202.45,0.03]
[1756553744510,3.96066326,202.47,202.45,0.68]
[1756553745620,42.04066326,202.48,202.46,0.65]
[1756553746022,42.04066326,202.48,202.45,0.03]
[1756553746205,42.04066326,202.48,202.45,0.68]
[1756553747434,26.06,202.49,202.46,3.96066326]
[1756553747621,26.06,202.49,202.47,0.65]
[1756553747929,30.02066326,202.49,202.45,0.68]
[1756553748104,30.02066326,202.49,202.45,0.03]
[1756553748306,30.02066326,202.49,202.46,0.65]
[1756553748616,4.64066326,202.48,202.45,0.03]
[1756553748818,3.96066326,202.47,202.45,0.03]
[1756553749009,3.96066326,202.46,202.45,0.03]
[1756553749209,4.64066326,202.46,202.45,0.03]
[1756553749806,3.96066326,202.46,202.45,0.03]
[1756553750003,4.64066326,202.46,202.45,0.03]
[1756553751027,38.06,202.47,202.45,0.03]
[1756553751333,38.06,202.47,202.45,0.68]
[1756553751905,3.96066326,202.46,202.45,0.03]
[1756553752225,4.64066326,202.46,202.45,0.03]
[1756553752432,3.96066326,202.46,202.45,0.03]
[1756553752729,42.02066326,202.47,202.45,0.03]
[1756553752927,7.95511897,202.46,202.45,0.03]
[1756553753330,33.95511897,202.46,202.45,0.03]
[1756553754657,3.31445571,202.46,202.45,4.64066326]
[1756553754837,0.06,202.49,202.45,4.64066326]
[1756553755010,0.06,202.49,202.46,4.61066326]
[1756553755205,26.06,202.49,202.46,4.61066326]
[1756553755427,26.06,202.49,202.47,0.65]
[1756553755712,26.06,202.49,202.48,0.65]
[1756553758335,29.38205615,202.49,202.48,0.65]
[1756553759321,29.38205615,202.49,202.47,4.93878367]
[1756553759522,26.06,202.49,202.47,5.58878367]
[1756553759935,26.06,202.49,202.48,0.65]
[1756553760109,29.38206745,202.49,202.48,0.65]
[1756553760309,3.38206745,202.49,202.48,4.61066326]
[1756553760533,0.06,202.49,202.48,4.61066326]
[1756553760913,0.06,202.49,202.48,9.54942264]
[1756553762334,0.06,202.49,202.48,5.58875938]
[1756553762515,0.06,202.49,202.48,9.54942264]
[1756553764821,0.06,202.49,202.48,4.93875938]
[1756553765418,0.06,202.49,202.48,5.61875938]
[1756553766116,0.06,202.49,202.48,9.57942264]
[1756553767917,0.06,202.49,202.48,5.61875938]
[1756553768153,0.06,202.49,202.48,9.57942264]
[1756553769340,0.06,202.49,202.48,22.57942264]
[1756553774017,0.06,202.49,202.48,36.17501665]
[1756553774438,0.06,202.52,202.49,13.59559401]
[1756553774742,0.06,202.52,202.51,29.96066326]
[1756553774941,0.06,202.52,202.51,3.96066326]
[1756553775241,0.06,202.52,202.51,4.64066326]
[1756553775619,0.06,202.52,202.49,15.659169]
[1756553775825,0.66,202.51,202.49,13.0]
[1756553776320,0.06,202.52,202.49,13.0]
[1756553776525,0.66,202.51,202.49,13.0]
[1756553778327,0.66,202.51,202.48,4.93875938]
[1756553778642,4.02066326,202.52,202.48,4.93875938]
[1756553778841,3.96066326,202.49,202.45,0.03]
[1756553779140,29.96066326,202.51,202.45,4.67066326]
[1756553779333,29.96066326,202.51,202.46,4.64066326]
[1756553779532,0.66,202.5,202.46,4.64066326]
[1756553780350,0.66,202.5,202.49,0.03]
[1756553781146,4.62066326,202.5,202.49,0.03]
[1756553781844,0.66,202.5,202.49,0.03]
[1756553782049,4.62066326,202.5,202.49,0.03]
[1756553782448,7.93890434,202.5,202.49,0.03]
[1756553784448,30.43343321,202.5,202.49,0.03]
[1756553784632,56.43343321,202.5,202.49,0.03]
[1756553784827,30.43343321,202.5,202.49,0.03]
[1756553787057,35.76850543,202.5,202.49,0.03]
[1756553787855,39.59559401,202.47,202.46,0.03]
[1756553788032,85.03449835,202.47,202.46,0.03]
[1756553788237,85.69449835,202.47,202.46,0.03]
[1756553788843,90.63350165,202.47,202.46,0.03]
[1756553789043,100.1132446,202.47,202.46,0.03]
[1756553789262,100.1132446,202.47,202.45,0.03]
[1756553789263,92.61453365,202.47,202.45,0.03]
[1756553789557,16.75478095,202.46,202.45,0.03]
[1756553789969,17.41478095,202.46,202.45,0.03]
[1756553790454,13.27397656,202.46,202.45,0.03]
[1756553790857,18.21322381,202.46,202.45,0.03]
[1756553791056,35.79658261,202.46,202.45,0.03]
[1756553791363,27.84815456,202.46,202.45,0.03]
[1756553791549,69.96881782,202.46,202.45,0.03]
[1756553795946,12.61397656,202.46,202.45,0.03]
[1756553796151,42.12066326,202.46,202.45,0.03]
[1756553796574,42.12066326,202.46,202.45,0.72]
[1756553796743,42.16066326,202.46,202.45,0.72]
[1756553796950,38.2,202.46,202.45,0.72]
[1756553797152,68.16066326,202.46,202.45,0.72]
[1756553797763,73.09991051,202.46,202.45,0.03]
[1756553798446,26.0,202.46,202.45,0.72]
[1756553798770,3.96066326,202.5,202.45,4.68066326]
[1756553798968,42.18066326,202.48,202.46,0.69]
[1756553799270,29.96066326,202.48,202.47,0.69]
[1756553799466,68.20066326,202.48,202.47,0.69]
[1756553802063,64.24,202.48,202.47,0.69]
[1756553802658,68.20066326,202.48,202.47,0.69]
[1756553803976,64.24,202.48,202.47,0.69]
[1756553806080,68.22066326,202.49,202.47,0.69]
[1756553808460,4.62066326,202.48,202.45,0.03]
[1756553808673,3.96066326,202.46,202.45,0.03]
[1756553808876,7.26854436,202.46,202.45,0.03]
[1756553809073,7.92854436,202.46,202.45,0.03]
[1756553809483,12.86779161,202.46,202.45,0.03]
[1756553812477,12.20779161,202.46,202.45,0.03]
[1756553812653,7.26854436,202.46,202.45,0.03]
[1756553813575,12.86779161,202.46,202.45,0.03]
[1756553816592,31.79823367,202.46,202.45,0.03]
[1756553816878,70.03823367,202.46,202.45,0.03]
[1756553820483,3.3078811,202.46,202.45,0.72]
[1756553820788,38.24,202.48,202.45,0.72]
[1756553821374,26.0,202.46,202.45,0.72]
[1756553822391,68.89066326,202.46,202.45,0.03]
[1756553822686,77.14504494,202.46,202.45,0.03]
[1756553823069,79.12578294,202.46,202.45,0.03]
[1756553823269,78.43578294,202.46,202.45,0.03]
[1756553823463,76.45504494,202.46,202.45,0.03]
[1756553823889,79.12578294,202.46,202.45,0.03]
[1756553824578,78.43578294,202.46,202.45,0.03]
[1756553826077,92.72137695,202.46,202.45,0.03]
[1756553828498,91.92293409,202.46,202.45,0.03]
[1756553830198,87.7821297,202.46,202.45,0.03]
[1756553830384,91.92989375,202.46,202.45,0.03]
[1756553833471,52.99989375,202.46,202.45,0.03]
[1756553833674,48.8521297,202.46,202.45,0.71]
[1756553833883,73.53653569,202.46,202.45,0.71]
[1756553834303,73.53653569,202.46,202.45,0.03]
[1756553834797,71.55579769,202.46,202.45,0.03]
[1756553835874,73.53653469,202.46,202.45,0.03]
[1756553836380,71.55579769,202.46,202.45,0.03]
[1756553836581,73.53653569,202.46,202.45,0.03]
[1756553836972,71.55579769,202.46,202.45,0.03]
[1756553838892,72.24579769,202.46,202.45,0.03]
[1756553839199,74.22653469,202.46,202.45,0.03]
[1756553839379,73.53653469,202.46,202.45,0.03]
[1756553841278,33.33579769,202.46,202.45,0.71]
[1756553841581,67.57513443,202.46,202.45,0.71]
[1756553841782,3.37513443,202.46,202.45,4.67066326]
[1756553843387,0.06,202.46,202.45,4.67066326]
[1756553845101,0.06,202.46,202.45,0.71]
[1756553847905,0.06,202.46,202.45,4.67066326]
[1756553848116,0.06,202.46,202.45,0.71]
[1756553849491,42.89066326,202.46,202.45,0.03]
[1756553849694,46.21018965,202.46,202.45,0.03]
[1756553855608,45.52018965,202.46,202.45,0.03]
[1756553856121,46.20018965,202.46,202.45,0.03]
[1756553858199,45.52018965,202.46,202.45,0.03]
[1756553859199,46.20018965,202.46,202.45,0.03]
[1756553859909,45.52018965,202.46,202.45,0.03]
[1756553861212,0.06,202.46,202.45,0.73]
[1756553864911,68.88066326,202.46,202.45,0.03]
[1756553865116,91.13099109,202.46,202.45,0.03]
[1756553865417,39.59559401,202.43,202.42,0.03]
[1756553865623,26.0,202.35,202.34,0.7]
[1756553865921,68.42066326,202.35,202.34,0.7]
[1756553866713,71.73798105,202.35,202.32,0.7]
[1756553866914,3.96066326,202.33,202.32,0.7]
[1756553867200,3.96066326,202.33,202.27,3.96066326]
[1756553867403,3.96066326,202.32,202.27,3.96066326]
[1756553867620,3.96066326,202.32,202.28,0.7]
[1756553867923,64.46,202.35,202.28,4.66066326]
[1756553868242,3.96066326,202.29,202.28,0.7]
[1756553868426,38.44,202.31,202.28,0.7]
[1756553868815,3.96066326,202.29,202.27,0.03]
[1756553869399,3.96066326,202.29,202.28,0.7]
[1756553869599,42.40066326,202.31,202.28,0.7]
[1756553869820,42.60066326,202.34,202.29,3.96066326]
[1756553870006,42.60066326,202.34,202.3,0.7]
[1756553870422,3.96066326,202.38,202.33,3.96066326]
[1756553870629,0.68,202.41,202.34,0.7]
[1756553870819,3.960664,202.42,202.35,3.96066326]
[1756553871020,23.32,202.41,202.39,3.96066326]
[1756553871232,4.020664,202.46,202.4,0.7]
[1756553871413,45.91362269,202.45,202.4,4.66066326]
[1756553871610,26.0,202.42,202.41,0.7]
[1756553872103,3.96066326,202.44,202.41,0.7]
[1756553872328,26.0,202.42,202.41,0.7]
[1756553872910,0.06,202.46,202.41,4.66066326]
[1756553873141,18.06,202.45,202.43,3.96066326]
[1756553873315,18.06,202.45,202.44,0.7]
[1756553874321,0.06,202.46,202.44,4.66066326]
[1756553874542,0.06,202.46,202.44,3.96066326]
[1756553874741,0.06,202.46,202.45,0.7]
[1756553875255,0.06,202.46,202.45,4.66066326]
[1756553877059,0.06,202.46,202.45,0.7]
[1756553877554,0.06,202.46,202.45,4.66066326]
[1756553879158,0.06,202.46,202.42,0.7]
[1756553879328,0.06,202.46,202.43,0.7]
[1756553879728,0.06,202.46,202.44,0.7]
[1756553880548,0.06,202.46,202.43,3.96066326]
[1756553880729,0.06,202.46,202.45,0.7]
[1756553884548,0.06,202.46,202.42,0.7]
[1756553884847,0.06,202.46,202.43,4.66066326]
[1756553885345,0.06,202.46,202.44,0.7]
[1756553885770,0.06,202.46,202.43,3.96066326]
[1756553886453,0.06,202.46,202.43,4.66066326]
[1756553887029,0.06,202.46,202.44,0.7]
[1756553887433,0.06,202.46,202.43,3.96066326]
[1756553887657,0.06,202.46,202.43,4.66066326]
[1756553888527,3.96066326,202.44,202.4,0.03]
[1756553888731,3.96066326,202.41,202.4,0.03]
[1756553888928,7.63717315,202.41,202.4,0.03]
[1756553889334,7.63705498,202.41,202.4,0.03]
[1756553890132,8.33705498,202.41,202.4,0.03]
[1756553891968,46.85705498,202.41,202.4,0.03]
[1756553892256,50.16413091,202.41,202.4,0.03]
[1756553894641,26.0,202.38,202.35,0.03]
[1756553894845,26.0,202.33,202.27,0.03]
[1756553895062,26.0,202.29,202.28,0.7]
[1756553895437,26.0,202.29,202.27,0.03]
[1756553895643,26.0,202.29,202.27,0.73]
[1756553896046,26.0,202.32,202.28,0.7]
[1756553896268,29.96066326,202.32,202.29,0.7]
[1756553896557,26.0,202.32,202.3,0.7]
[1756553897159,26.0,202.32,202.28,0.7]
[1756553897344,29.96066326,202.32,202.29,0.7]
[1756553897546,38.58,202.35,202.3,0.7]
[1756553897752,42.54066326,202.35,202.29,3.96066326]
[1756553897957,42.54066326,202.35,202.3,0.7]
[1756553898165,3.96066326,202.34,202.29,3.96066326]
[1756553898340,3.96066326,202.34,202.31,0.7]
[1756553899979,38.58,202.35,202.27,0.03]
[1756553900286,38.58,202.35,202.32,0.7]
[1756553900473,38.58,202.35,202.33,0.7]
[1756553900802,42.54066326,202.35,202.31,0.7]
[1756553900982,3.96066326,202.34,202.31,0.7]
[1756553901265,3.96066326,202.34,202.32,0.7]
[1756553901479,42.54066326,202.35,202.32,0.7]
[1756553902585,4.66066326,202.4,202.34,3.96066326]
[1756553902886,3.66762433,202.39,202.35,3.96066326]
[1756553903040,26.0,202.37,202.35,4.66066326]
[1756553903542,26.0,202.37,202.35,0.7]
[1756553904555,0.7,202.44,202.36,4.66066326]
[1756553904759,46.20906557,202.43,202.37,4.66066326]
[1756553904961,42.54066326,202.43,202.37,4.66066326]
[1756553905161,7.62909048,202.42,202.37,0.7]
[1756553905376,4.66066326,202.42,202.37,4.66066326]
[1756553905870,4.66066326,202.42,202.37,0.7]
[1756553907183,4.66066326,202.42,202.38,0.7]
[1756553907377,3.96066326,202.42,202.38,0.7]
[1756553907682,42.54066326,202.43,202.39,0.7]
[1756553907982,3.66895887,202.42,202.38,3.96066326]
[1756553908169,43.24066326,202.43,202.38,4.66066326]
[1756553908377,39.28,202.43,202.38,4.66066326]
[1756553908565,42.54066326,202.43,202.39,0.7]
[1756553908960,42.54066326,202.43,202.31,13.62559401]
[1756553908961,13.59559401,202.35,202.31,0.03]
[1756553909264,47.51692053,202.32,202.31,0.03]
[1756553909582,54.4873127,202.32,202.31,0.03]
[1756553909888,55.1873127,202.32,202.31,0.03]
[1756553911180,26.0,202.29,202.28,0.03]
[1756553911360,71.80929766,202.29,202.28,0.03]
[1756553911561,72.49929766,202.29,202.28,0.03]
[1756553913568,66.15,202.29,202.28,0.03]
[1756553913887,72.49929766,202.29,202.28,0.03]
[1756553914786,76.15749387,202.29,202.28,0.03]
[1756553915812,26.0,202.25,202.24,0.03]
[1756553915965,71.72929766,202.25,202.24,0.03]
[1756553916166,72.41929766,202.25,202.24,0.03]
[1756553917861,65.48,202.25,202.24,0.03]
[1756553918188,71.82929766,202.25,202.24,0.03]
[1756553919894,26.0,202.19,202.15,0.72]
[1756553920093,6.34929766,202.16,202.15,0.72]
[1756553920389,6.34929766,202.16,202.09,1.08006429]
[1756553920594,6.34929766,202.12,202.09,1.08006429]
[1756553920795,6.34929766,202.12,202.1,0.72]
[1756553921000,6.34929766,202.12,202.11,0.72]
[1756553923686,26.0,202.18,202.11,5.6678007]
[1756553923893,6.34929766,202.15,202.12,0.72]
[1756553924395,6.34929766,202.15,202.13,0.72]
[1756553924577,65.58,202.18,202.11,4.9478007]
[1756553924778,6.34929766,202.16,202.14,0.72]
[1756553924991,65.58,202.18,202.15,0.72]
[1756553924992,6.34929766,202.17,202.15,0.72]
[1756553925708,26.0,202.17,202.15,0.72]
[1756553925890,32.34929766,202.17,202.15,0.72]
[1756553926092,6.34929766,202.16,202.15,0.72]
[1756553926484,32.34929766,202.17,202.15,0.72]
[1756553927398,26.0,202.17,202.12,4.9475559]
[1756553927575,32.34929766,202.17,202.13,0.72]
[1756553927779,32.34929766,202.17,202.14,0.72]
[1756553928180,6.34929766,202.16,202.14,0.72]
[1756553928482,0.69,202.23,202.15,0.72]
[1756553928685,39.5,202.22,202.16,6.34929766]
[1756553928879,39.5,202.25,202.19,6.34929766]
[1756553929113,26.0,202.22,202.2,0.72]
[1756553929314,6.34929766,202.24,202.2,0.72]
[1756553929499,6.34929766,202.24,202.21,4.94535384]
[1756553930112,2.6142977,202.3,202.22,0.72]
[1756553930314,2.6142977,202.3,202.22,7.06929766]
[1756553930315,43.18431275,202.29,202.22,7.06929766]
[1756553930489,32.34929766,202.27,202.22,0.72]
[1756553930691,6.34929766,202.26,202.22,0.72]
[1756553930892,6.34929766,202.25,202.22,0.72]
[1756553931409,3.96802064,202.25,202.22,0.72]
[1756553931708,3.96802064,202.25,202.23,0.72]
[1756553932119,3.96802064,202.26,202.23,0.72]
[1756553932283,26.0,202.27,202.24,0.72]
[1756553932490,26.0,202.27,202.17,43.90775703]
[1756553932491,39.5,202.28,202.25,0.72]
[1756553932700,3.96802064,202.29,202.26,0.72]
[1756553932889,26.0,202.28,202.26,0.72]
[1756553933091,53.09559401,202.27,202.13,0.72]
[1756553933283,3.96802064,202.19,202.13,4.68802064]
[1756553933506,3.96802064,202.2,202.14,4.68802064]
[1756553933705,3.96802064,202.18,202.14,5.66698399]
[1756553933880,3.96802064,202.19,202.14,4.94698399]
[1756553934085,3.96802064,202.19,202.15,0.72]
[1756553934714,3.96802064,202.16,202.11,0.72]
[1756553934900,3.96802064,202.15,202.12,0.72]
[1756553935323,6.35481429,202.15,202.12,0.72]
[1756553935519,6.35481429,202.14,202.12,0.72]
[1756553936032,6.35481429,202.16,202.13,0.72]
[1756553936217,6.35481429,202.15,202.13,0.72]
[1756553937213,6.35481429,202.15,202.12,4.94747045]
[1756553937414,6.35481429,202.17,202.14,0.72]
[1756553937722,6.35481429,202.17,202.15,4.94682166]
[1756553937908,6.35481429,202.17,202.16,0.72]
[1756553938631,6.35481429,202.18,202.16,0.72]
[1756553938800,6.35481429,202.17,202.15,4.94682166]
[1756553939126,6.35481429,202.17,202.15,5.66682166]
[1756553940124,6.35481429,202.18,202.15,5.66682166]
[1756553940328,0.69,202.26,202.16,0.72]
[1756553940514,6.35481429,202.23,202.17,6.35481429]
[1756553940826,6.35481429,202.19,202.16,13.0]
[1756553941120,6.35481429,202.19,202.16,0.68]
[1756553941303,6.35481429,202.21,202.15,24.33163595]
[1756553941504,6.35481429,202.2,202.16,0.68]
[1756553941726,6.35481429,202.21,202.17,0.68]
[1756553941900,6.35481429,202.21,202.17,5.6262271]
[1756553942096,0.06,202.24,202.19,6.35481429]
[1756553942302,0.06,202.24,202.2,0.68]
[1756553942501,0.06,202.24,202.21,0.68]
[1756553942701,6.41481429,202.24,202.21,0.68]
[1756553942918,6.41481429,202.24,202.22,0.68]
[1756553943122,6.41481429,202.24,202.2,0.68]
[1756553943645,6.35481429,202.23,202.2,0.68]
[1756553944725,6.35481429,202.22,202.2,5.62552252]
[1756553945515,6.35481429,202.21,202.16,14.27559401]
[1756553945710,6.35481429,202.21,202.17,0.68]
[1756553945898,6.35481429,202.21,202.18,0.68]
[1756553946113,6.35481429,202.21,202.19,0.68]
[1756553947429,6.35481429,202.21,202.19,5.62560358]
[1756553947802,0.73,202.24,202.19,5.62560358]
[1756553948002,0.06,202.24,202.2,0.68]
[1756553948422,6.35481429,202.23,202.2,0.68]
[1756553949025,6.35481429,202.22,202.2,0.68]
[1756553949230,6.35481429,202.21,202.17,5.62618405]
[1756553949412,6.35481429,202.2,202.17,5.62618405]
[1756553949737,6.35481429,202.2,202.18,0.68]
[1756553949928,0.73,202.24,202.19,0.68]
[1756553949929,6.35481429,202.21,202.19,0.68]
[1756553950224,6.35481429,202.22,202.2,4.94559841]
[1756553950829,6.35481429,202.22,202.2,5.62559841]
[1756553951204,6.35481429,202.23,202.2,4.94559841]
[1756553951402,6.35481429,202.23,202.21,0.68]
[1756553952519,6.35481429,202.23,202.21,5.62522706]
[1756553952921,6.35481429,202.22,202.18,5.62608764]
[1756553953133,6.35481429,202.21,202.19,0.68]
[1756553953831,6.35481429,202.22,202.19,0.68]
[1756553954016,6.35481429,202.22,202.2,4.94559841]
[1756553954218,6.35481429,202.22,202.2,5.62559841]
[1756553954916,0.06,202.24,202.21,0.68]
[1756553956243,0.06,202.24,202.22,4.94510928]
[1756553956426,0.06,202.24,202.23,0.68]
[1756553957439,0.06,202.24,202.23,18.24274375]
[1756553957734,1e-08,202.24,202.23,18.24274375]
[1756553958446,1e-08,202.24,202.23,36.1876085]
[1756553960224,1e-08,202.24,202.23,58.22045876]
[1756553960415,1e-08,202.24,202.23,62.1876085]
[1756553960821,1e-08,202.24,202.23,101.6876085]
[1756553961239,1e-08,202.24,202.23,103.6689345]
[1756553962331,0.06,202.31,202.27,39.59559401]
[1756553962536,0.06,202.31,202.3,17.56274375]
[1756553962951,0.06,202.31,202.3,18.24274375]
[1756553964231,0.06,202.31,202.3,23.18589748]
[1756553964431,0.73,202.31,202.3,4.94315373]
[1756553964719,0.73,202.31,202.29,44.38335533]
[1756553964924,0.06,202.31,202.29,44.38335533]
[1756553965743,0.06,202.31,202.29,49.03050507]
[1756553965947,0.06,202.31,202.3,4.64714974]
[1756553966124,0.06,202.31,202.3,0.68]
[1756553966324,0.06,202.31,202.3,3.96714974]
[1756553967546,0.06,202.31,202.3,8.91030347]
[1756553969452,0.06,202.31,202.3,48.31030347]
[1756553970342,0.06,202.31,202.3,62.58589748]
[1756553970650,1e-08,202.31,202.3,62.58589748]
[1756553975958,1e-08,202.31,202.3,75.58589748]
[1756553976454,1e-08,202.31,202.3,77.56673248]
[1756553976857,1e-08,202.31,202.3,81.53388222]
[1756553977754,1e-08,202.31,202.3,77.56673248]
[1756553978656,1e-08,202.31,202.3,77.59673248]
[1756553979448,0.06,202.36,202.34,13.59559401]
[1756553979652,0.06,202.36,202.35,56.82274375]
[1756553979849,0.06,202.36,202.35,70.48274375]
[1756553980840,0.06,202.36,202.35,75.42467604]
[1756553981862,0.69,202.4,202.36,13.59559401]
[1756553982057,0.69,202.42,202.39,3.96714974]
[1756553982240,0.69,202.42,202.4,39.28]
[1756553982950,0.69,202.41,202.37,16.96714974]
[1756553983259,0.69,202.4,202.38,39.26]
[1756553983860,0.69,202.4,202.39,39.26]
[1756553984358,0.69,202.4,202.39,44.20095558]
[1756553984860,3.96714974,202.43,202.39,44.20095558]
[1756553985036,0.69,202.42,202.39,44.20095558]
[1756553985233,0.69,202.41,202.39,44.20095558]
[1756553990974,0.69,202.41,202.4,44.12071146]
[1756553991762,4.65714974,202.43,202.4,44.12071146]
[1756553991972,0.69,202.42,202.4,44.12071146]
[1756553995354,3.96714974,202.43,202.4,44.12071146]
[1756553995550,4.65714974,202.43,202.4,44.12071146]
[1756553996180,0.06,202.42,202.4,44.12071146]
[1756553999572,0.06,202.42,202.41,5.60046736]
[1756553999767,0.06,202.42,202.41,4.94046736]
[1756554000081,0.06,202.42,202.41,5.60046736]
[1756554000388,0.06,202.42,202.41,23.16321111]
[1756554001151,0.06,202.42,202.41,19.19606137]
[1756554001391,0.06,202.42,202.41,25.14316411]
[1756554002861,0.06,202.42,202.41,43.98046736]
[1756554003172,0.06,202.42,202.41,48.6276171]
[1756554004070,0.06,202.42,202.41,44.66046736]
[1756554004556,0.06,202.42,202.41,48.6276171]
[1756554005686,0.06,202.42,202.41,4.94046736]
[1756554005981,4.71714974,202.42,202.4,4.94057923]
[1756554006179,0.69,202.41,202.4,4.94057923]
[1756554006360,4.71714974,202.42,202.4,4.94057923]
[1756554007266,0.75,202.42,202.39,4.94095558]
[1756554008180,0.06,202.42,202.39,5.62095558]
[1756554008486,0.75,202.42,202.39,4.94095558]
[1756554009967,0.69,202.41,202.39,4.94095558]
[1756554010287,0.69,202.4,202.39,4.94095558]
[1756554011697,3.96714974,202.41,202.39,4.94095558]
[1756554011870,4.65714974,202.41,202.39,4.94095558]
[1756554012388,3.96714974,202.41,202.39,4.94095558]
[1756554012589,4.65714974,202.41,202.39,4.94095558]
[1756554013296,0.69,202.4,202.39,4.94095558]
[1756554013500,4.65714974,202.41,202.39,4.94095558]
[1756554014085,3.96714974,202.41,202.39,4.94095558]
[1756554017867,0.75,202.42,202.39,4.94095558]
[1756554018063,3.96714974,202.41,202.39,4.94095558]
[1756554018262,4.65714974,202.4,202.37,4.02715]
[1756554018486,3.96714974,202.38,202.36,0.03]
[1756554018693,3.96714974,202.37,202.36,0.03]
[1756554019894,3.96714974,202.38,202.36,0.71]
[1756554021096,29.96714974,202.4,202.36,0.03]
[1756554021290,29.96714974,202.4,202.37,0.68]
[1756554021689,29.96714974,202.4,202.38,0.68]
[1756554021990,29.96714974,202.4,202.38,4.94115393]
[1756554022376,0.06,202.42,202.38,4.94115393]
[1756554022584,3.96714974,202.41,202.39,0.68]
[1756554022970,3.96714974,202.41,202.38,4.94115393]
[1756554023170,3.96714974,202.41,202.38,5.62115393]
[1756554023585,3.96714974,202.4,202.38,4.94115393]
[1756554023794,3.96714974,202.39,202.38,4.94115393]
[1756554023999,3.96714974,202.39,202.37,0.68]
[1756554024371,0.06,202.42,202.37,0.68]
[1756554024681,3.96714974,202.39,202.37,0.68]
[1756554025383,3.96714974,202.39,202.38,4.94119972]
[1756554025996,3.96714974,202.39,202.38,5.62119972]
[1756554026298,3.96714974,202.4,202.38,5.62119972]
[1756554026683,3.96714974,202.41,202.38,5.62119972]
[1756554029195,3.96714974,202.4,202.38,5.62119972]
[1756554030385,0.06,202.42,202.38,5.62119972]
[1756554030583,3.96714974,202.4,202.38,5.62119972]
[1756554031605,0.75,202.42,202.38,5.62119972]
[1756554031781,3.96714974,202.4,202.38,5.62119972]
[1756554032491,3.96714974,202.4,202.39,0.71]
[1756554032695,3.96714974,202.4,202.37,5.65144388]
[1756554032905,3.96714974,202.4,202.37,4.94144388]
[1756554033109,3.96714974,202.4,202.38,0.71]
[1756554033804,3.96714974,202.4,202.39,4.94095558]
[1756554034513,4.02714974,202.41,202.39,4.94095558]
[1756554035703,4.02714974,202.41,202.39,0.71]
[1756554036005,0.06,202.41,202.37,5.65144388]
[1756554036204,4.02714974,202.41,202.38,0.71]
[1756554036899,4.02714974,202.41,202.39,4.94095558]
[1756554038388,0.06,202.41,202.4,0.71]
[1756554039698,0.06,202.41,202.4,5.65071146]
[1756554041802,1e-08,202.41,202.4,23.20618136]
[1756554042005,1e-08,202.41,202.4,5.65071146]
[1756554042204,1e-08,202.41,202.4,4.94071146]
[1756554043095,1e-08,202.41,202.4,5.65071146]
[1756554045306,1e-08,202.41,202.4,27.16605736]
[1756554048000,1e-08,202.41,202.4,40.16605736]
[1756554050501,1e-08,202.41,202.4,40.19605736]
[1756554054620,1e-08,202.41,202.4,36.23618147]
[1756554054804,1e-08,202.41,202.4,40.19605736]